[Event "Riga Chess Open 2020"]
[Site "Riga"]
[Date "2020.08.28"]
[Round "6.3"]
[White "Raag, Ardi"]
[Black "Morkunas, Gustas"]
[Result "1/2-1/2"]
[ECO "C60"]
[WhiteElo "1724"]
[BlackElo "1660"]
[Annotator "NA"]
[PlyCount "106"]
[EventDate "2020.08.29"]
[EventType "swiss"]
[EventCountry "LAT"]
[SourceTitle "playchess.com"]
[Source "ChessBase"]
[SourceQuality "1"]
[TimeControl "5400+30"]

1. e4 {[%emt 0:00:00]} e5 {[%emt 0:00:00]} 2. Nf3 {[%emt 0:00:00]} Nc6 {[%emt 0:00:00]} 3. Bb5 {[%emt 0:00:00]} g6 {[%emt 0:00:00]} 4. O-O {[%emt 0:00:33]} Bg7 {[%emt 0:00:35]} 5. c3 {[%emt 0:00:27]} a6 {[%emt 0:01:51]} 6. Ba4 {[%emt 0:00:15]} b5 {[%emt 0:01:15]} 7. Bc2 {[%emt 0:00:22]} Nge7 {[%emt 0:01:20]} 8. d4 {[%emt 0:00:38]} exd4 {[%emt 0:00:53]} 9. cxd4 {[%emt 0:00:07]} d6 {[%emt 0:00:48]} 10. h3 {[%emt 0:00:48]} O-O {[%emt 0:01:16]} 11. Re1 {[%emt 0:00:32]} Na5 {[%emt 0:01:17]} 12. Nc3 {[%emt 0:00:37]} c5 {[%emt 0:01:24]} 13. d5 {[%emt 0:00:43]} Nc4 {[%emt 0:02:09]} 14. Rb1 {[%emt 0:00:21]} Qa5 {[%emt 0:09:00]} 15. Qd3 {[%emt 0:24:57]} Bd7 {[%emt 0:10:55]} 16. a3 {[%emt 0:17:01]} b4 {[%emt 0:19:55]} 17. Qxc4 {[%emt 0:04:11]} bxc3 {[%emt 0:00:19]} 18. bxc3 {[%emt 0:01:05]} Bb5 {[%emt 0:02:42]} 19. Qa2 {[%emt 0:06:07]} Bxc3 {[%emt 0:01:36]} 20. Re3 {[%emt 0:00:37]} Bd4 {[%emt 0:10:29]} 21. Bd2 {[%emt 0:03:39]} Qc7 {[%emt 0:02:12]} 22. Nxd4 {[%emt 0:00:20]} cxd4 {[%emt 0:00:07]} 23. Rg3 {[%emt 0:01:45]} f5 {[%emt 0:06:22]} 24. e5 {[%emt 0:05:43]} Kh8 {[%emt 0:05:33]} 25. e6 {[%emt 0:02:28]} Bc4 {[%emt 0:04:26]} 26. Bb3 {[%emt 0:00:46]} Bxb3 {[%emt 0:00:30]} 27. Rgxb3 {[%emt 0:02:19]} Qc4 {[%emt 0:01:10]} 28. Qb2 {[%emt 0:05:28]} Qxd5 {[%emt 0:02:52]} 29. Rd3 {[%emt 0:00:46]} Qxe6 {[%emt 0:01:42]} 30. Qxd4+ {[%emt 0:00:21]} Qe5 {[%emt 0:01:30]} 31. Qxd6 {[%emt 0:03:13]} Qxd6 {[%emt 0:00:37]} 32. Rxd6 {[%emt 0:00:05]} Rfd8 {[%emt 0:00:47]} 33. Rbb6 {[%emt 0:02:58]} Rxd6 {[%emt 0:01:28]} 34. Rxd6 {[%emt 0:00:02]} Kg8 {[%emt 0:01:43]} 35. Bg5 {[%emt 0:01:33]} Nc8 {[%emt 0:06:31]} 36. Rd8+ {[%emt 0:01:28]} Kf7 {[%emt 0:00:29]} 37. Rd7+ {[%emt 0:00:31]} Kg8 {[%emt 0:00:38]} 38. Be3 {[%emt 0:01:46]} Rb8 {[%emt 0:00:32]} 39. Bd4 {[%emt 0:02:15]} Rb1+ {[%emt 0:00:32]} 40. Kh2 {[%emt 0:00:01]} Rc1 {[%emt 0:00:15]} 41. Rg7+ {[%emt 0:00:26]} Kf8 {[%emt 0:00:11]} 42. Rxh7 {[%emt 0:00:11]} Rc6 {[%emt 0:00:05]} 43. Rb7 {[%emt 0:01:29]} Nd6 {[%emt 0:01:07]} 44. Rb6 {[%emt 0:00:56]} Rxb6 {[%emt 0:00:13]} 45. Bxb6 {[%emt 0:00:01]} Nc4 {[%emt 0:00:27]} 46. Bc5+ {[%emt 0:00:12]} Kf7 {[%emt 0:00:08]} 47. f4 {[%emt 0:03:13]} Ke6 {[%emt 0:01:04]} 48. Kg3 {[%emt 0:01:03]} Kd5 {[%emt 0:00:12]} 49. Be7 {[%emt 0:01:28]} Ke4 {[%emt 0:00:33]} 50. Bf8 {[%emt 0:01:29]} Ke3 {[%emt 0:00:35]} 51. Kh4 {[%emt 0:04:19]} Kxf4 {[%emt 0:00:46]} 52. Bh6+ {[%emt 0:00:14]} Ke5 {[%emt 0:00:49]} 53. Kg5 {[%emt 0:01:05]} Ne3 {[%emt 0:00:42]} 1/2-1/2

[Event "Riga Chess Open 2020"]
[Site "Riga"]
[Date "2020.08.28"]
[Round "6.4"]
[White "Milovs, Daniels"]
[Black "Stabulnieks, Klavs"]
[Result "1-0"]
[ECO "B21"]
[WhiteElo "1592"]
[BlackElo "2214"]
[Annotator "ChessBase"]
[PlyCount "47"]
[EventDate "2020.08.29"]
[EventType "swiss"]
[EventCountry "LAT"]
[SourceTitle "playchess.com"]
[Source "ChessBase"]
[SourceQuality "1"]
[TimeControl "5400+30"]

1. e4 {[%emt 0:00:00]} c5 {[%emt 0:00:00]} 2. Be2 {[%emt 0:00:00]} Nc6 {[%emt 0:00:00]} 3. f4 {[%emt 0:00:00]} g6 {[%emt 0:00:00]} 4. Nf3 {[%emt 0:00:00]} Bg7 {[%emt 0:00:05]} 5. c3 {[%emt 0:00:00]} e6 {[%emt 0:03:14]} 6. d3 {[%emt 0:00:29]} Nge7 {[%emt 0:00:15]} 7. O-O {[%emt 0:00:06]} d5 {[%emt 0:00:23]} 8. Qe1 {[%emt 0:02:04]} b6 {[%emt 0:00:32]} 9. Na3 {[%emt 0:03:08]} Ba6 {[%emt 0:01:46]} 10. e5 {[%emt 0:03:36]} d4 {[%emt 0:03:57]} 11. Nc4 {[%emt 0:09:19]} O-O {[%emt 0:04:51]} 12. Nd6 {[%emt 0:09:11]} dxc3 {[%emt 0:06:35]} 13. bxc3 {[%emt 0:02:31]} Nf5 {[%emt 0:00:57]} 14. Nxf5 {[%emt 0:03:39]} exf5 {[%emt 0:00:04]} 15. d4 {[%emt 0:02:31]} Bxe2 {[%emt 0:01:32]} 16. Qxe2 {[%emt 0:00:16]} cxd4 {[%emt 0:00:06]} 17. Rd1 {[%emt 0:00:19]} d3 {[%emt 0:01:16]} 18. Rxd3 {[%emt 0:02:42]} Qc8 {[%emt 0:02:30]} 19. Ba3 {[%emt 0:04:46]} Re8 {[%emt 0:02:14]} 20. Rad1 {[%emt 0:06:15]} f6 {[%emt 0:02:13]} 21. Rd7 {[%emt 0:04:12]} fxe5 {[%emt 0:13:25]} 22. Qc4+ {[%emt 0:00:59]} Kh8 {[%emt 0:00:05]} 23. Ng5 {[%emt 0:08:43]} Nd8 {[%emt 0:01:12]} 24. Rc7 {[%emt 0:06:55]} 1-0

[Event "Riga Chess Open 2020"]
[Site "Riga"]
[Date "2020.08.29"]
[Round "7.2"]
[White "Sibajeva, Marija"]
[Black "Raag, Ardi"]
[Result "1-0"]
[ECO "D03"]
[WhiteElo "1973"]
[BlackElo "1724"]
[Annotator "ChessBase"]
[PlyCount "47"]
[EventDate "2020.08.29"]
[EventType "swiss"]
[EventCountry "LAT"]
[SourceTitle "playchess.com"]
[Source "ChessBase"]
[SourceQuality "1"]
[TimeControl "5400+30"]

1. d4 {[%emt 0:00:12]} d5 {[%emt 0:00:00]} 2. Nf3 {[%emt 0:00:05]} Nf6 {[%emt 0:00:00]} 3. Bg5 {[%emt 0:00:06]} c5 {[%emt 0:00:38]} 4. c3 {[%emt 0:00:38]} Ne4 {[%emt 0:00:24]} 5. Bh4 {[%emt 0:00:36]} Qb6 {[%emt 0:02:13]} 6. Qc1 {[%emt 0:05:15]} cxd4 {[%emt 0:02:28]} 7. cxd4 {[%emt 0:01:38]} Nc6 {[%emt 0:00:58]} 8. e3 {[%emt 0:00:45]} Bf5 {[%emt 0:01:12]} 9. Nc3 {[%emt 0:01:09]} e6 {[%emt 0:04:09]} 10. Be2 {[%emt 0:11:14]} Bb4 {[%emt 0:22:36]} 11. O-O {[%emt 0:00:37]} O-O {[%emt 0:03:04]} 12. Nxe4 {[%emt 0:01:44]} Bxe4 {[%emt 0:00:08]} 13. a3 {[%emt 0:01:00]} Bd6 {[%emt 0:00:31]} 14. b4 {[%emt 0:00:39]} Rac8 {[%emt 0:04:58]} 15. Qd2 {[%emt 0:12:55]} a5 {[%emt 0:05:45]} 16. b5 {[%emt 0:01:29]} Na7 {[%emt 0:01:06]} 17. Ra2 {[%emt 0:01:12]} Rc7 {[%emt 0:02:07]} 18. Rfa1 {[%emt 0:02:40]} Rfc8 {[%emt 0:01:08]} 19. Ne1 {[%emt 0:00:14]} a4 {[%emt 0:06:11]} 20. Bg3 {[%emt 0:05:50]} Bxg3 {[%emt 0:04:13]} 21. hxg3 {[%emt 0:00:08]} Rc3 {[%emt 0:01:01]} 22. Rb2 {[%emt 0:02:24]} Qa5 {[%emt 0:04:56]} 23. b6 {[%emt 0:01:01]} Nc6 {[%emt 0:00:56]} 24. Rb5 {[%emt 0:00:35]} 1-0

[Event "Riga Chess Open 2020"]
[Site "Riga"]
[Date "2020.08.29"]
[Round "7.3"]
[White "Melderis, Uldis"]
[Black "Milovs, Daniels"]
[Result "1-0"]
[ECO "E63"]
[WhiteElo "1889"]
[BlackElo "1592"]
[Annotator "NA"]
[PlyCount "91"]
[EventDate "2020.08.29"]
[EventType "swiss"]
[EventCountry "LAT"]
[SourceTitle "playchess.com"]
[Source "ChessBase"]
[SourceQuality "1"]
[TimeControl "5400+30"]

1. d4 {[%emt 0:00:00]} Nf6 {[%emt 0:00:00]} 2. Nf3 {[%emt 0:00:00]} g6 {[%emt 0:00:00]} 3. c4 {[%emt 0:00:00]} Bg7 {[%emt 0:00:00]} 4. Nc3 {[%emt 0:00:00]} d6 {[%emt 0:00:11]} 5. g3 {[%emt 0:00:00]} O-O {[%emt 0:00:06]} 6. Bg2 {[%emt 0:00:02]} Nc6 {[%emt 0:00:12]} 7. O-O {[%emt 0:00:24]} a6 {[%emt 0:00:06]} 8. e4 {[%emt 0:00:38]} Bg4 {[%emt 0:00:12]} 9. Be3 {[%emt 0:00:49]} Nd7 {[%emt 0:02:35]} 10. Qd2 {[%emt 0:00:45]} Bxf3 {[%emt 0:03:20]} 11. Bxf3 {[%emt 0:00:06]} e5 {[%emt 0:00:09]} 12. dxe5 {[%emt 0:00:44]} dxe5 {[%emt 0:03:36]} 13. Bg5 {[%emt 0:06:51]} Nd4 {[%emt 0:10:37]} 14. Kg2 {[%emt 0:04:32]} Nf6 {[%emt 0:05:34]} 15. c5 {[%emt 0:04:11]} Ne6 {[%emt 0:07:35]} 16. Qxd8 {[%emt 0:00:43]} Raxd8 {[%emt 0:05:03]} 17. Bxf6 {[%emt 0:00:21]} Bxf6 {[%emt 0:00:01]} 18. Nd5 {[%emt 0:01:32]} Bg7 {[%emt 0:01:18]} 19. c6 {[%emt 0:03:19]} bxc6 {[%emt 0:08:19]} 20. Ne7+ {[%emt 0:00:46]} Kh8 {[%emt 0:00:00]} 21. Nxc6 {[%emt 0:00:10]} Rd2 {[%emt 0:00:01]} 22. b3 {[%emt 0:00:46]} Nd4 {[%emt 0:05:59]} 23. Nb4 {[%emt 0:03:06]} f5 {[%emt 0:10:48]} 24. Rad1 {[%emt 0:06:28]} Nxf3 {[%emt 0:04:48]} 25. Kxf3 {[%emt 0:00:22]} fxe4+ {[%emt 0:08:32]} 26. Kxe4 {[%emt 0:00:23]} Re2+ {[%emt 0:04:30]} 27. Kd3 {[%emt 0:04:50]} Rexf2 {[%emt 0:01:49]} 28. Rxf2 {[%emt 0:00:10]} Rxf2 {[%emt 0:00:11]} 29. Ke3 {[%emt 0:00:09]} Rf8 {[%emt 0:01:36]} 30. Nxa6 {[%emt 0:01:56]} Ra8 {[%emt 0:02:18]} 31. Nxc7 {[%emt 0:00:47]} Bh6+ {[%emt 0:00:21]} 32. Ke4 {[%emt 0:00:09]} Rxa2 {[%emt 0:00:28]} 33. Ne6 {[%emt 0:01:40]} Kg8 {[%emt 0:01:45]} 34. Kxe5 {[%emt 0:00:51]} Rxh2 {[%emt 0:00:40]} 35. Rb1 {[%emt 0:03:14]} Kf7 {[%emt 0:03:43]} 36. Nc5 {[%emt 0:00:19]} Rh5+ {[%emt 0:00:54]} 37. Kd4 {[%emt 0:00:20]} Be3+ {[%emt 0:01:13]} 38. Kxe3 {[%emt 0:00:05]} Rxc5 {[%emt 0:00:04]} 39. b4 {[%emt 0:00:17]} Rc8 {[%emt 0:03:03]} 40. b5 {[%emt 0:00:09]} Ke6 {[%emt 0:00:37]} 41. Kf4 {[%emt 0:00:46]} h6 {[%emt 0:03:18]} 42. b6 {[%emt 0:00:06]} Rb8 {[%emt 0:01:38]} 43. b7 {[%emt 0:00:12]} Kf6 {[%emt 0:03:47]} 44. Rb6+ {[%emt 0:00:14]} Kf7 {[%emt 0:00:23]} 45. Ke5 {[%emt 0:00:09]} Ke7 {[%emt 0:00:38]} 46. Rxg6 {[%emt 0:00:09]} 1-0

[Event "Riga Chess Open 2020"]
[Site "Riga"]
[Date "2020.08.29"]
[Round "7.4"]
[White "Katishonok, Nikolaj"]
[Black "Aminovs, Maksims"]
[Result "1-0"]
[ECO "D01"]
[WhiteElo "2118"]
[BlackElo "1613"]
[Annotator "ChessBase"]
[PlyCount "51"]
[EventDate "2020.08.29"]
[EventType "swiss"]
[EventCountry "LAT"]
[SourceTitle "playchess.com"]
[Source "ChessBase"]
[SourceQuality "1"]
[TimeControl "5400+30"]

1. Nc3 {[%emt 0:00:00]} d5 {[%emt 0:00:00]} 2. d4 {[%emt 0:00:00]} Nf6 {[%emt 0:00:00]} 3. Bg5 {[%emt 0:01:09]} Nbd7 {[%emt 0:00:00]} 4. f3 {[%emt 0:00:32]} c6 {[%emt 0:00:29]} 5. Qd2 {[%emt 0:01:21]} Qb6 {[%emt 0:29:09]} 6. O-O-O {[%emt 0:00:38]} e6 {[%emt 0:01:25]} 7. e4 {[%emt 0:05:39]} dxe4 {[%emt 0:01:49]} 8. Nxe4 {[%emt 0:00:14]} Be7 {[%emt 0:05:58]} 9. h4 {[%emt 0:04:46]} Qd8 {[%emt 0:22:08]} 10. Bd3 {[%emt 0:05:37]} h6 {[%emt 0:02:11]} 11. Bf4 {[%emt 0:05:03]} Nxe4 {[%emt 0:11:49]} 12. fxe4 {[%emt 0:01:27]} Bxh4 {[%emt 0:02:03]} 13. Nf3 {[%emt 0:01:12]} Bf6 {[%emt 0:02:14]} 14. g4 {[%emt 0:01:47]} Rg8 {[%emt 0:06:07]} 15. e5 {[%emt 0:07:26]} Be7 {[%emt 0:01:04]} 16. g5 {[%emt 0:01:59]} hxg5 {[%emt 0:00:51]} 17. Bxg5 {[%emt 0:00:17]} Nb6 {[%emt 0:01:41]} 18. Rdf1 {[%emt 0:03:03]} Nd5 {[%emt 0:03:27]} 19. c4 {[%emt 0:02:29]} Nb4 {[%emt 0:01:57]} 20. Bh7 {[%emt 0:00:24]} Rf8 {[%emt 0:00:14]} 21. a3 {[%emt 0:00:17]} Na6 {[%emt 0:01:20]} 22. Be4 {[%emt 0:02:26]} Bd7 {[%emt 0:01:03]} 23. Rh7 {[%emt 0:00:14]} g6 {[%emt 0:00:49]} 24. Qf4 {[%emt 0:01:22]} Bxg5 {[%emt 0:02:17]} 25. Nxg5 {[%emt 0:00:14]} Qe7 {[%emt 0:00:20]} 26. Nxf7 {[%emt 0:03:45]} 1-0

[Event "Riga Chess Open 2020"]
[Site "Riga"]
[Date "2020.08.29"]
[Round "8.1"]
[White "Krivonosov, Oleg"]
[Black "Sibajeva, Marija"]
[Result "1-0"]
[ECO "D27"]
[WhiteElo "2381"]
[BlackElo "1973"]
[Annotator "ChessBase"]
[PlyCount "133"]
[EventDate "2020.08.29"]
[EventType "swiss"]
[EventCountry "LAT"]
[SourceTitle "playchess.com"]
[Source "ChessBase"]
[SourceQuality "1"]
[TimeControl "5400+30"]

1. Nf3 {[%emt 0:00:00]} d5 {[%emt 0:00:00]} 2. d4 {[%emt 0:00:00]} Nf6 {[%emt 0:00:35]} 3. c4 {[%emt 0:00:22]} dxc4 {[%emt 0:02:15]} 4. e3 {[%emt 0:00:37]} a6 {[%emt 0:00:08]} 5. Bxc4 {[%emt 0:00:38]} e6 {[%emt 0:00:06]} 6. O-O {[%emt 0:00:16]} c5 {[%emt 0:00:15]} 7. dxc5 {[%emt 0:00:21]} Qxd1 {[%emt 0:00:28]} 8. Rxd1 {[%emt 0:01:02]} Bxc5 {[%emt 0:00:15]} 9. Nbd2 {[%emt 0:00:58]} O-O {[%emt 0:02:39]} 10. b3 {[%emt 0:00:46]} b6 {[%emt 0:04:53]} 11. Bb2 {[%emt 0:01:08]} Bb7 {[%emt 0:00:10]} 12. Be2 {[%emt 0:00:36]} Nc6 {[%emt 0:01:45]} 13. Rac1 {[%emt 0:02:10]} Rfd8 {[%emt 0:00:44]} 14. a3 {[%emt 0:00:39]} Rac8 {[%emt 0:02:10]} 15. b4 {[%emt 0:00:56]} Be7 {[%emt 0:01:21]} 16. Nb3 {[%emt 0:01:43]} Rxd1+ {[%emt 0:01:05]} 17. Rxd1 {[%emt 0:00:35]} Rd8 {[%emt 0:00:33]} 18. Rc1 {[%emt 0:00:47]} Nd5 {[%emt 0:01:30]} 19. Nfd4 {[%emt 0:01:42]} Nxd4 {[%emt 0:00:36]} 20. Bxd4 {[%emt 0:00:19]} Bf6 {[%emt 0:03:31]} 21. Bxf6 {[%emt 0:01:48]} gxf6 {[%emt 0:00:08]} 22. Bf3 {[%emt 0:02:24]} Rd7 {[%emt 0:04:54]} 23. Kf1 {[%emt 0:02:03]} Ne7 {[%emt 0:02:52]} 24. Bxb7 {[%emt 0:00:38]} Rxb7 {[%emt 0:00:06]} 25. Ke2 {[%emt 0:00:25]} Rd7 {[%emt 0:00:17]} 26. Rc4 {[%emt 0:00:43]} e5 {[%emt 0:03:53]} 27. f4 {[%emt 0:02:58]} Kg7 {[%emt 0:02:14]} 28. Nd2 {[%emt 0:00:30]} Nd5 {[%emt 0:02:18]} 29. f5 {[%emt 0:01:37]} Ne7 {[%emt 0:03:10]} 30. g4 {[%emt 0:00:50]} h5 {[%emt 0:08:25]} 31. h3 {[%emt 0:01:41]} hxg4 {[%emt 0:02:33]} 32. hxg4 {[%emt 0:00:09]} Rd8 {[%emt 0:09:41]} 33. Ne4 {[%emt 0:00:46]} Rd7 {[%emt 0:04:10]} 34. Rc1 {[%emt 0:01:14]} Rd8 {[%emt 0:02:13]} 35. Rc7 {[%emt 0:01:15]} Ng8 {[%emt 0:02:54]} 36. Rc6 {[%emt 0:01:23]} Rb8 {[%emt 0:00:41]} 37. Kf3 {[%emt 0:00:38]} Rb7 {[%emt 0:04:12]} 38. Nd6 {[%emt 0:01:30]} Rb8 {[%emt 0:00:13]} 39. Rc7 {[%emt 0:02:50]} Nh6 {[%emt 0:00:44]} 40. Rc8 {[%emt 0:01:57]} Rxc8 {[%emt 0:00:44]} 41. Nxc8 {[%emt 0:00:04]} b5 {[%emt 0:00:07]} 42. Ne7 {[%emt 0:00:30]} Kf8 {[%emt 0:00:54]} 43. Nd5 {[%emt 0:00:16]} Ng8 {[%emt 0:00:10]} 44. Nc7 {[%emt 0:02:54]} Ke7 {[%emt 0:00:31]} 45. Nxa6 {[%emt 0:00:05]} Kd6 {[%emt 0:00:54]} 46. e4 {[%emt 0:00:53]} Ne7 {[%emt 0:02:08]} 47. Nc5 {[%emt 0:00:15]} Nc6 {[%emt 0:00:31]} 48. Nb3 {[%emt 0:00:05]} Ne7 {[%emt 0:01:38]} 49. Nd2 {[%emt 0:00:49]} Nc6 {[%emt 0:00:25]} 50. Ke3 {[%emt 0:00:18]} Nd4 {[%emt 0:00:18]} 51. Kd3 {[%emt 0:00:04]} Ke7 {[%emt 0:04:29]} 52. Nb1 {[%emt 0:03:14]} Kf8 {[%emt 0:03:35]} 53. Nc3 {[%emt 0:00:23]} Kg7 {[%emt 0:00:13]} 54. a4 {[%emt 0:00:17]} bxa4 {[%emt 0:00:07]} 55. Nxa4 {[%emt 0:00:01]} Kh6 {[%emt 0:00:38]} 56. Nc3 {[%emt 0:00:21]} Kg5 {[%emt 0:00:21]} 57. b5 {[%emt 0:00:06]} Kxg4 {[%emt 0:00:32]} 58. b6 {[%emt 0:00:03]} Nc6 {[%emt 0:00:28]} 59. b7 {[%emt 0:00:27]} Nb8 {[%emt 0:00:24]} 60. Kc4 {[%emt 0:00:54]} Kf3 {[%emt 0:00:28]} 61. Kd5 {[%emt 0:00:41]} Ke3 {[%emt 0:00:32]} 62. Nb5 {[%emt 0:00:23]} Na6 {[%emt 0:00:55]} 63. Nd6 {[%emt 0:00:34]} Nb4+ {[%emt 0:00:40]} 64. Kc5 {[%emt 0:00:18]} Na6+ {[%emt 0:00:04]} 65. Kb6 {[%emt 0:00:11]} Nb8 {[%emt 0:00:04]} 66. Kc7 {[%emt 0:00:14]} Na6+ {[%emt 0:00:18]} 67. Kc8 {[%emt 0:00:05]} 1-0

[Event "Riga Chess Open 2020"]
[Site "Riga"]
[Date "2020.08.29"]
[Round "8.2"]
[White "Katishonok, Nikolaj"]
[Black "Melderis, Uldis"]
[Result "1-0"]
[ECO "D26"]
[WhiteElo "2118"]
[BlackElo "1889"]
[Annotator "ChessBase"]
[PlyCount "61"]
[EventDate "2020.08.29"]
[EventType "swiss"]
[EventCountry "LAT"]
[SourceTitle "playchess.com"]
[Source "ChessBase"]
[SourceQuality "1"]
[TimeControl "5400+30"]

1. d4 {[%emt 0:00:36]} d5 {[%emt 0:00:00]} 2. c4 {[%emt 0:00:07]} e6 {[%emt 0:00:00]} 3. Nc3 {[%emt 0:00:33]} Nf6 {[%emt 0:00:00]} 4. Nf3 {[%emt 0:02:44]} a6 {[%emt 0:03:09]} 5. e3 {[%emt 0:05:16]} dxc4 {[%emt 0:00:06]} 6. Bxc4 {[%emt 0:00:06]} b5 {[%emt 0:00:02]} 7. Bd3 {[%emt 0:05:23]} Bb7 {[%emt 0:04:52]} 8. Qc2 {[%emt 0:00:15]} Nbd7 {[%emt 0:01:27]} 9. a4 {[%emt 0:01:16]} b4 {[%emt 0:00:59]} 10. Ne4 {[%emt 0:00:25]} Nxe4 {[%emt 0:01:37]} 11. Bxe4 {[%emt 0:00:08]} Bxe4 {[%emt 0:00:39]} 12. Qxe4 {[%emt 0:00:27]} Be7 {[%emt 0:02:52]} 13. O-O {[%emt 0:04:27]} O-O {[%emt 0:00:45]} 14. Bd2 {[%emt 0:00:58]} c5 {[%emt 0:01:21]} 15. dxc5 {[%emt 0:01:52]} Nxc5 {[%emt 0:00:48]} 16. Qxb4 {[%emt 0:09:45]} Rb8 {[%emt 0:02:06]} 17. Qc3 {[%emt 0:00:13]} Ne4 {[%emt 0:01:26]} 18. Qc2 {[%emt 0:00:25]} Nxd2 {[%emt 0:00:37]} 19. Nxd2 {[%emt 0:00:25]} Bf6 {[%emt 0:02:07]} 20. Rab1 {[%emt 0:01:00]} Qa5 {[%emt 0:01:38]} 21. Nc4 {[%emt 0:01:15]} Rfc8 {[%emt 0:01:58]} 22. b3 {[%emt 0:01:45]} Qb4 {[%emt 0:00:37]} 23. Rfd1 {[%emt 0:01:12]} h6 {[%emt 0:00:42]} 24. h3 {[%emt 0:01:43]} Rc5 {[%emt 0:01:38]} 25. Qe4 {[%emt 0:03:33]} Re5 {[%emt 0:01:13]} 26. Qc6 {[%emt 0:00:32]} Rc5 {[%emt 0:04:49]} 27. Qxa6 {[%emt 0:03:48]} Qc3 {[%emt 0:00:21]} 28. Qa7 {[%emt 0:07:20]} Rcc8 {[%emt 0:01:11]} 29. Nd6 {[%emt 0:03:05]} Rd8 {[%emt 0:02:55]} 30. Qxf7+ {[%emt 0:00:51]} Kh8 {[%emt 0:00:09]} 31. Qxe6 {[%emt 0:00:16]} 1-0

[Event "Riga Chess Open 2020"]
[Site "Riga"]
[Date "2020.08.29"]
[Round "8.3"]
[White "Raag, Ardi"]
[Black "Tokranovs, Dmitrijs"]
[Result "0-1"]
[ECO "B03"]
[WhiteElo "1724"]
[BlackElo "2212"]
[Annotator "ChessBase"]
[PlyCount "96"]
[EventDate "2020.08.29"]
[EventType "swiss"]
[EventCountry "LAT"]
[SourceTitle "playchess.com"]
[Source "ChessBase"]
[SourceQuality "1"]
[TimeControl "5400+30"]

1. e4 {[%emt 0:00:00]} Nf6 {[%emt 0:00:27]} 2. e5 {[%emt 0:00:00]} Nd5 {[%emt 0:00:03]} 3. d4 {[%emt 0:00:00]} d6 {[%emt 0:00:04]} 4. c4 {[%emt 0:00:00]} Nb6 {[%emt 0:00:03]} 5. f4 {[%emt 0:00:06]} dxe5 {[%emt 0:01:07]} 6. fxe5 {[%emt 0:00:06]} Nc6 {[%emt 0:00:04]} 7. Be3 {[%emt 0:01:37]} Bf5 {[%emt 0:00:41]} 8. Nc3 {[%emt 0:01:53]} e6 {[%emt 0:02:13]} 9. Be2 {[%emt 0:02:40]} Qd7 {[%emt 0:06:10]} 10. Nf3 {[%emt 0:12:53]} Be7 {[%emt 0:00:44]} 11. O-O {[%emt 0:12:18]} Rd8 {[%emt 0:02:42]} 12. Qd2 {[%emt 0:17:27]} O-O {[%emt 0:02:08]} 13. Rad1 {[%emt 0:00:11]} f6 {[%emt 0:07:35]} 14. exf6 {[%emt 0:03:11]} Bxf6 {[%emt 0:00:13]} 15. d5 {[%emt 0:01:28]} exd5 {[%emt 0:03:15]} 16. Nxd5 {[%emt 0:00:33]} Nxd5 {[%emt 0:09:29]} 17. cxd5 {[%emt 0:00:08]} Ne7 {[%emt 0:00:26]} 18. Bc4 {[%emt 0:00:20]} Kh8 {[%emt 0:01:10]} 19. Nd4 {[%emt 0:03:53]} Bg4 {[%emt 0:02:47]} 20. Ne6 {[%emt 0:00:57]} Bxd1 {[%emt 0:04:28]} 21. Nxf8 {[%emt 0:00:09]} Rxf8 {[%emt 0:00:45]} 22. Rxd1 {[%emt 0:00:07]} Nf5 {[%emt 0:02:56]} 23. Bf2 {[%emt 0:05:32]} Be5 {[%emt 0:03:58]} 24. Bc5 {[%emt 0:07:15]} Nd6 {[%emt 0:07:40]} 25. Qb4 {[%emt 0:05:00]} Qg4 {[%emt 0:01:19]} 26. Bb3 {[%emt 0:01:24]} Rf4 {[%emt 0:09:49]} 27. Qe1 {[%emt 0:02:36]} Re4 {[%emt 0:03:33]} 28. Qf1 {[%emt 0:01:06]} Kg8 {[%emt 0:02:03]} 29. Bxd6 {[%emt 0:03:27]} cxd6 {[%emt 0:02:55]} 30. Bc2 {[%emt 0:05:03]} Qh4 {[%emt 0:03:08]} 31. h3 {[%emt 0:01:46]} Rf4 {[%emt 0:00:35]} 32. Qe2 {[%emt 0:03:41]} Qg3 {[%emt 0:01:03]} 33. Qd3 {[%emt 0:01:13]} Qf2+ {[%emt 0:02:35]} 34. Kh1 {[%emt 0:00:18]} g6 {[%emt 0:00:03]} 35. Bb3 {[%emt 0:01:17]} Rf7 {[%emt 0:04:01]} 36. Rg1 {[%emt 0:03:14]} Kg7 {[%emt 0:03:26]} 37. Bc4 {[%emt 0:01:29]} Bxb2 {[%emt 0:01:18]} 38. Rf1 {[%emt 0:00:30]} Qxf1+ {[%emt 0:00:03]} 39. Qxf1 {[%emt 0:00:06]} Rxf1+ {[%emt 0:00:06]} 40. Bxf1 {[%emt 0:00:03]} Kf6 {[%emt 0:00:05]} 41. Bc4 {[%emt 0:01:49]} Ke5 {[%emt 0:00:02]} 42. g4 {[%emt 0:00:56]} Kd4 {[%emt 0:00:11]} 43. Bb3 {[%emt 0:00:07]} g5 {[%emt 0:01:25]} 44. Kg2 {[%emt 0:00:08]} b5 {[%emt 0:00:05]} 45. Kf2 {[%emt 0:03:24]} a5 {[%emt 0:00:08]} 46. Kf3 {[%emt 0:00:09]} a4 {[%emt 0:01:37]} 47. Bc2 {[%emt 0:00:05]} h6 {[%emt 0:01:46]} 48. Be4 {[%emt 0:00:10]} Bc1 {[%emt 0:00:37]} 0-1

[Event "Riga Chess Open 2020"]
[Site "Riga"]
[Date "2020.08.29"]
[Round "8.4"]
[White "Stabulnieks, Klavs"]
[Black "Petersons, Ojars"]
[Result "1-0"]
[ECO "A42"]
[WhiteElo "2214"]
[BlackElo "1655"]
[Annotator "ChessBase"]
[PlyCount "79"]
[EventDate "2020.08.29"]
[EventType "swiss"]
[EventCountry "LAT"]
[SourceTitle "playchess.com"]
[Source "ChessBase"]
[SourceQuality "1"]
[TimeControl "5400+30"]

1. d4 {[%emt 0:06:12]} d6 {[%emt 0:00:00]} 2. c4 {[%emt 0:00:05]} g6 {[%emt 0:00:00]} 3. Nc3 {[%emt 0:00:04]} Bg7 {[%emt 0:00:03]} 4. e4 {[%emt 0:00:33]} e6 {[%emt 0:01:02]} 5. Be3 {[%emt 0:00:26]} b6 {[%emt 0:01:50]} 6. Qd2 {[%emt 0:03:39]} Bb7 {[%emt 0:00:47]} 7. Nge2 {[%emt 0:00:18]} Ne7 {[%emt 0:02:13]} 8. f3 {[%emt 0:01:47]} Nd7 {[%emt 0:01:45]} 9. O-O-O {[%emt 0:03:27]} Nf6 {[%emt 0:10:12]} 10. Bh6 {[%emt 0:01:11]} Bxh6 {[%emt 0:03:20]} 11. Qxh6 {[%emt 0:00:06]} Nh5 {[%emt 0:14:41]} 12. g4 {[%emt 0:01:25]} Ng8 {[%emt 0:03:40]} 13. Qe3 {[%emt 0:01:34]} Ng7 {[%emt 0:00:17]} 14. Ng3 {[%emt 0:01:36]} Qe7 {[%emt 0:01:02]} 15. h4 {[%emt 0:02:07]} h5 {[%emt 0:03:09]} 16. g5 {[%emt 0:00:36]} O-O-O {[%emt 0:00:48]} 17. Bh3 {[%emt 0:00:36]} Kb8 {[%emt 0:00:09]} 18. Rhe1 {[%emt 0:00:16]} Qe8 {[%emt 0:04:20]} 19. f4 {[%emt 0:01:12]} Ne7 {[%emt 0:00:36]} 20. Rd2 {[%emt 0:03:25]} Nc8 {[%emt 0:02:55]} 21. Rde2 {[%emt 0:00:43]} Qf8 {[%emt 0:09:08]} 22. d5 {[%emt 0:04:24]} e5 {[%emt 0:07:51]} 23. Rf2 {[%emt 0:01:05]} Qe7 {[%emt 0:04:09]} 24. Ref1 {[%emt 0:02:02]} Rhf8 {[%emt 0:00:18]} 25. f5 {[%emt 0:00:13]} gxf5 {[%emt 0:02:49]} 26. exf5 {[%emt 0:00:31]} f6 {[%emt 0:01:45]} 27. Nge4 {[%emt 0:01:14]} Ne8 {[%emt 0:01:17]} 28. Qe2 {[%emt 0:03:07]} Qh7 {[%emt 0:02:25]} 29. gxf6 {[%emt 0:00:42]} Nxf6 {[%emt 0:00:14]} 30. Nxf6 {[%emt 0:00:07]} Rxf6 {[%emt 0:00:01]} 31. Ne4 {[%emt 0:00:07]} Qh6+ {[%emt 0:02:35]} 32. Qd2 {[%emt 0:01:48]} Qxd2+ {[%emt 0:01:33]} 33. Kxd2 {[%emt 0:00:04]} Rff8 {[%emt 0:00:07]} 34. f6 {[%emt 0:00:04]} c6 {[%emt 0:00:09]} 35. Be6 {[%emt 0:00:10]} cxd5 {[%emt 0:00:25]} 36. cxd5 {[%emt 0:00:08]} b5 {[%emt 0:00:33]} 37. f7 {[%emt 0:01:06]} Nb6 {[%emt 0:01:08]} 38. Nf6 {[%emt 0:00:07]} Bc8 {[%emt 0:02:20]} 39. Nh7 {[%emt 0:00:16]} Nc4+ {[%emt 0:02:38]} 40. Kd3 {[%emt 0:00:18]} 1-0